bitfinex-derivatives/quotes_BTCF0:USTF0_20250324
["timestamp","ask_amount","ask_price","bid_price","bid_amount"]
[1742804488975,0.0572851,87281.0,87268.0,0.1145872]
[1742804489269,0.3608,87285.0,87268.0,0.00132]
[1742804489464,0.0304,87280.0,87269.0,0.066]
[1742804489662,0.0314,87279.0,87278.0,0.1145741]
[1742804489859,0.0314,87279.0,87278.0,0.1158941]
[1742804490064,0.2619138,87279.0,87278.0,0.00132]
[1742804490272,0.2619148,87279.0,87278.0,0.1145741]
[1742804490466,0.147341,87279.0,87278.0,0.12999567]
[1742804490969,0.150341,87279.0,87278.0,0.13139567]
[1742804491154,0.2335138,87279.0,87278.0,0.01682157]
[1742804491359,0.2335138,87279.0,87278.0,0.12999567]
[1742804491559,0.2649138,87279.0,87278.0,0.13135567]
[1742804491763,0.118941,87279.0,87278.0,0.13135567]
[1742804491960,0.118941,87279.0,87278.0,0.1159341]
[1742804492357,0.36962651,87301.0,87286.0,0.1145636]
[1742804492659,0.0647,87300.0,87299.0,0.1145465]
[1742804492962,0.14596525,87300.0,87299.0,0.1162665]
[1742804493275,0.11456525,87300.0,87299.0,0.14237083]
[1742804493660,0.1145452,87300.0,87299.0,0.12760885]
[1742804493968,0.1174426,87302.0,87301.0,0.1145439]
[1742804494167,0.1174426,87302.0,87301.0,0.1163439]
[1742804494472,0.0029,87302.0,87301.0,0.1163439]
[1742804494662,0.11744819,87302.0,87301.0,0.1163439]
[1742804495865,0.23199079,87302.0,87301.0,0.1163439]
[1742804496065,0.23199079,87302.0,87301.0,0.0018]
[1742804496772,0.29499079,87302.0,87301.0,0.1173439]
[1742804497361,0.29599079,87302.0,87301.0,0.1163439]
[1742804498173,0.18144819,87302.0,87301.0,0.1163439]
[1742804498475,0.11844819,87302.0,87301.0,0.1163439]
[1742804498674,0.0039,87302.0,87301.0,0.1163439]
[1742804498873,0.0049,87302.0,87301.0,0.1163439]
[1742804499761,0.0039,87302.0,87301.0,0.1163439]
[1742804500377,0.0039,87302.0,87301.0,0.1173439]
[1742804501378,0.1184426,87302.0,87301.0,0.0028]
[1742804501564,0.11744556,87302.0,87301.0,0.0028]
[1742804501882,0.11744556,87302.0,87301.0,0.1480439]
[1742804502980,0.23198816,87302.0,87301.0,0.1480439]
[1742804503879,0.23198816,87302.0,87301.0,0.1173439]
[1742804504081,0.26468816,87302.0,87301.0,0.1173439]
[1742804504275,0.26468816,87302.0,87301.0,0.0028]
[1742804504786,0.26468816,87302.0,87301.0,0.001]
[1742804505083,0.26468816,87302.0,87291.0,0.01156768]
[1742804505084,0.1145557,87292.0,87291.0,0.01156768]
[1742804505377,0.1145557,87292.0,87291.0,0.01328768]
[1742804505768,0.22910126,87292.0,87291.0,0.01328768]
[1742804505964,0.22910126,87292.0,87291.0,0.00189182]
[1742804505965,0.29010126,87292.0,87291.0,0.00189182]
[1742804506379,0.29310126,87292.0,87291.0,0.00189182]
[1742804506770,0.29510126,87292.0,87291.0,0.00189182]
[1742804507372,0.29310126,87292.0,87291.0,0.00189182]
[1742804507772,0.29610126,87292.0,87291.0,0.00189182]
[1742804508579,0.18154556,87292.0,87291.0,0.11644882]
[1742804508773,0.29610126,87292.0,87291.0,0.11644882]
[1742804509171,0.29610126,87292.0,87291.0,0.00189182]
[1742804509577,0.29310126,87292.0,87291.0,0.13324624]
[1742804509780,0.17754556,87292.0,87291.0,0.16584624]
[1742804510379,0.17554556,87292.0,87291.0,0.16584624]
[1742804510681,0.29010126,87292.0,87291.0,0.16584624]
[1742804511083,0.17554556,87292.0,87291.0,0.16784624]
[1742804511283,0.17554556,87292.0,87291.0,0.16584624]
[1742804511674,0.29010126,87292.0,87291.0,0.16584624]
[1742804512076,0.14484556,87292.0,87291.0,0.16584624]
[1742804512283,8e-05,87294.0,87293.0,0.1145544]
[1742804512485,0.0635,87301.0,87300.0,0.1145452]
[1742804512685,0.0635,87301.0,87300.0,0.1162652]
[1742804512990,0.0327,87301.0,87300.0,0.13106262]
[1742804513289,0.0313,87304.0,87301.0,0.1145439]
[1742804513481,0.0313,87304.0,87301.0,0.1481639]
[1742804513681,0.0328,87303.0,87301.0,0.1803639]
[1742804514078,0.0328,87303.0,87301.0,0.21938051]
[1742804514278,0.00017172,87308.0,87304.0,0.0572696]
[1742804514586,0.00017172,87308.0,87307.0,0.475336]
[1742804514980,0.11470642,87308.0,87307.0,0.477056]
[1742804515179,0.090066,87310.0,87307.0,0.5343233]
[1742804515374,0.1145347,87308.0,87307.0,0.648858]
[1742804515674,0.1145347,87308.0,87307.0,0.0589873]
[1742804515878,0.1473347,87308.0,87307.0,0.09800391]
[1742804516282,0.0328,87308.0,87307.0,0.09800391]
[1742804516887,0.0358,87308.0,87307.0,0.45880391]
[1742804517384,0.003,87308.0,87307.0,0.45880391]
[1742804517780,0.003,87308.0,87307.0,0.49190391]
[1742804517980,0.003,87308.0,87307.0,0.52410391]
[1742804518493,0.007,87308.0,87307.0,0.52410391]
[1742804519376,8e-05,87312.0,87311.0,0.1145308]
[1742804519577,0.031,87316.0,87315.0,0.1145255]
[1742804519889,0.031,87316.0,87315.0,0.1163255]
[1742804519890,0.0626,87316.0,87315.0,0.1163255]
[1742804520084,0.0626,87316.0,87315.0,0.15534211]
[1742804520590,0.1771242,87316.0,87315.0,0.18814211]
[1742804521286,0.0666,87316.0,87315.0,0.19985966]
[1742804521590,0.1811242,87316.0,87315.0,0.16705966]
[1742804521792,0.1811242,87316.0,87315.0,0.05253416]
[1742804521987,0.6564514,87316.0,87315.0,0.04081661]
[1742804522187,0.2966514,87316.0,87315.0,0.04081661]
[1742804522488,0.1821272,87316.0,87315.0,0.04081661]
[1742804522674,0.1821272,87316.0,87315.0,0.15534211]
[1742804522878,0.2966514,87316.0,87315.0,0.15534211]
[1742804523492,0.2946514,87316.0,87315.0,0.15534211]
[1742804523880,0.2946514,87316.0,87315.0,0.18554211]
[1742804524079,0.1801272,87316.0,87315.0,0.54634211]
[1742804524790,0.2946514,87316.0,87315.0,0.54634211]
[1742804524979,0.2936514,87316.0,87315.0,0.54634211]
[1742804525183,0.2946514,87316.0,87315.0,0.54634211]
[1742804525383,0.2946514,87316.0,87315.0,0.57634211]
[1742804526083,0.003,87316.0,87315.0,0.57634211]
[1742804526393,0.0349,87316.0,87315.0,0.57634211]
[1742804526586,0.0667,87316.0,87315.0,0.57634211]
[1742804526789,0.2136242,87316.0,87315.0,0.57634211]
[1742804526990,0.2136242,87316.0,87315.0,0.40161661]
[1742804526991,0.3281514,87316.0,87315.0,0.40161661]
[1742804527176,0.3261514,87316.0,87315.0,0.04081661]
[1742804527385,0.3251514,87316.0,87315.0,0.04081661]
[1742804527686,0.6859514,87316.0,87315.0,0.04081661]
[1742804527890,0.6859514,87316.0,87315.0,0.38186872]
[1742804528088,0.6859514,87316.0,87315.0,0.33196872]
[1742804528288,0.6881114,87316.0,87315.0,0.33312872]
[1742804528981,0.6871114,87316.0,87315.0,0.33312872]
[1742804529187,0.5735872,87316.0,87315.0,0.44765422]
[1742804529385,0.6891114,87316.0,87315.0,0.33312872]
[1742804529997,0.6881114,87316.0,87315.0,0.33312872]
[1742804530696,0.6881114,87316.0,87315.0,0.00116]
[1742804531382,0.6891114,87316.0,87315.0,0.00116]
[1742804532395,0.6881114,87316.0,87315.0,0.00116]
[1742804532699,0.6891114,87316.0,87315.0,0.00116]
[1742804532901,0.6901114,87316.0,87315.0,0.00116]
[1742804533400,0.6881114,87316.0,87315.0,0.00116]
[1742804533589,0.6901114,87316.0,87315.0,0.00116]
[1742804533787,0.6901114,87316.0,87309.0,0.1145321]
[1742804533788,0.1145347,87309.0,87308.0,0.1145342]
[1742804533988,0.1156947,87309.0,87308.0,0.1156942]
[1742804534183,0.1772947,87309.0,87308.0,0.1156942]
[1742804534600,0.1772947,87309.0,87308.0,0.1468942]
[1742804534601,0.2918219,87309.0,87308.0,0.1468942]
[1742804534895,0.2918219,87309.0,87308.0,0.03236]
[1742804537195,0.2918219,87309.0,87308.0,0.1468947]
[1742804537393,0.2938219,87309.0,87308.0,0.1468947]
[1742804538103,0.2928219,87309.0,87308.0,0.1468947]
[1742804538399,0.1792872,87309.0,87308.0,0.1468947]
[1742804538902,0.1782872,87309.0,87308.0,0.1468947]
[1742804539699,0.06376,87309.0,87308.0,0.1468947]
[1742804539902,0.0616,87309.0,87308.0,0.1468947]
[1742804540291,0.06276,87309.0,87308.0,0.1468947]
[1742804540702,0.0616,87309.0,87308.0,0.4068947]
[1742804541599,0.0616,87309.0,87308.0,0.4372947]
[1742804541798,0.1761334,87309.0,87308.0,0.4372947]
[1742804541999,0.1761334,87309.0,87308.0,0.1772947]
[1742804542205,0.06276,87309.0,87308.0,0.1772947]
[1742804542500,0.06276,87309.0,87308.0,0.4372947]
[1742804542807,0.0616,87309.0,87308.0,0.4372947]
[1742804543805,0.0616,87309.0,87308.0,0.4442947]
[1742804544205,0.0616,87309.0,87308.0,0.4412947]
[1742804544404,0.0616,87309.0,87308.0,0.4432947]
[1742804544608,0.0616,87309.0,87308.0,0.4412947]
[1742804546307,0.0616,87309.0,87308.0,0.4392947]
[1742804546515,0.0616,87309.0,87308.0,0.4412947]
[1742804546813,0.0616,87309.0,87308.0,0.4392947]
[1742804548507,0.0646,87316.0,87315.0,0.1145255]
[1742804548704,0.0646,87316.0,87315.0,0.5092855]
[1742804548912,0.0646,87316.0,87315.0,0.5407855]
[1742804549301,0.06524,87316.0,87315.0,0.5407855]
[1742804549502,0.0646,87316.0,87315.0,0.5407855]
[1742804549802,0.06576,87316.0,87315.0,0.5407855]
[1742804550105,0.0646,87316.0,87315.0,0.5407855]
[1742804550612,0.06680001,87316.0,87315.0,0.5407855]
[1742804550806,0.06780001,87316.0,87315.0,0.5407855]
[1742804551211,0.06680001,87316.0,87315.0,0.5417855]
[1742804551911,0.06580001,87316.0,87315.0,0.5427855]
[1742804552119,0.0646,87316.0,87315.0,0.9927855]
[1742804552415,0.03422808,87316.0,87315.0,0.9927855]
[1742804552598,0.3608,87350.0,87321.0,0.0572587]
[1742804552798,0.0326,87335.0,87331.0,0.4753045]
[1742804553106,0.0573231,87345.0,87331.0,1.0523164]
[1742804553306,0.1144904,87342.0,87331.0,1.0523164]
[1742804553509,8e-05,87333.0,87331.0,1.0523164]
[1742804553704,8e-05,87333.0,87331.0,1.06095679]
[1742804554117,8e-05,87333.0,87331.0,0.84095679]
[1742804554118,0.035,87332.0,87331.0,0.84095679]
[1742804554417,0.038,87332.0,87331.0,0.84095679]
[1742804554614,0.038,87332.0,87331.0,1.10095679]
[1742804555019,0.038,87332.0,87331.0,1.1123045]
[1742804555717,0.038,87332.0,87331.0,0.3764119]
[1742804555718,0.26700942,87332.0,87331.0,0.3764119]
[1742804555910,0.33114943,87332.0,87331.0,0.00116]
[1742804556632,0.69194943,87332.0,87331.0,0.00116]
[1742804556817,0.1145085,87328.0,87327.0,0.1145086]
[1742804557016,0.1156685,87328.0,87327.0,0.1482686]
[1742804557321,0.1777685,87328.0,87327.0,0.3982686]
[1742804557520,0.29227472,87328.0,87327.0,0.3982686]
[1742804557717,0.17776622,87328.0,87327.0,0.3982686]
[1742804558119,0.17660622,87328.0,87327.0,0.3982686]
[1742804558314,0.17776622,87328.0,87327.0,0.3982686]
[1742804558507,0.17660622,87328.0,87327.0,0.3982686]
[1742804558715,0.26057472,87328.0,87327.0,0.3982686]
[1742804558919,0.14606622,87328.0,87327.0,0.3982686]
[1742804559309,0.26057472,87328.0,87327.0,0.3982686]
[1742804559510,0.29227472,87328.0,87327.0,0.3982686]
[1742804560611,0.17776622,87328.0,87327.0,0.3982686]
[1742804561419,0.03156,87328.0,87327.0,0.6582686]
[1742804561625,0.0304,87328.0,87327.0,0.6582686]
[1742804562412,0.0304,87328.0,87327.0,0.3982686]
[1742804563217,0.03156,87328.0,87327.0,0.3982686]
[1742804563426,0.06216,87328.0,87327.0,0.3982686]
[1742804563614,0.1766685,87328.0,87327.0,0.3982686]
[1742804564427,0.06216,87328.0,87327.0,0.3982686]
[1742804564624,0.1755085,87328.0,87327.0,0.3982686]
[1742804564824,0.29117996,87328.0,87327.0,0.00116]
[1742804565928,0.1145124,87325.0,87324.0,0.2290265]
[1742804566124,0.11511241,87325.0,87324.0,0.2301865]
[1742804566432,0.11511241,87325.0,87324.0,0.00116]
[1742804566433,0.20911241,87325.0,87324.0,0.00116]
[1742804566634,0.32362387,87325.0,87324.0,0.00116]
[1742804566831,0.1145203,87319.0,87318.0,0.00017182]
[1742804567122,0.11576031,87319.0,87318.0,0.28001639]
[1742804567347,0.17856031,87319.0,87318.0,0.38593342]
[1742804567625,0.17856031,87319.0,87318.0,0.41613342]
[1742804567830,0.17856031,87319.0,87318.0,0.42763355]
[1742804568927,0.17856031,87319.0,87318.0,0.31311195]
[1742804570127,0.17856031,87319.0,87318.0,0.42843355]
[1742804570626,0.17856031,87319.0,87318.0,0.31391195]
[1742804571118,0.17856031,87319.0,87318.0,0.3223739]
[1742804571920,0.17856031,87319.0,87318.0,0.4368955]
[1742804572629,0.29308357,87319.0,87318.0,0.3223739]
[1742804573132,0.29308357,87319.0,87318.0,0.0523739]
[1742804573328,0.29308357,87319.0,87318.0,0.0213739]
[1742804573928,0.29308357,87319.0,87318.0,0.0537739]
[1742804574315,0.29308357,87319.0,87318.0,0.00987377]
[1742804574522,0.29308357,87319.0,87318.0,0.00017182]
[1742804581035,0.114536,87307.0,87306.0,0.3608]
[1742804581333,0.114536,87307.0,87306.0,0.00116]
[1742804581334,0.11513601,87307.0,87306.0,0.00116]
[1742804581833,0.26245927,87307.0,87306.0,0.03176]
[1742804582219,0.26245927,87307.0,87306.0,0.03376]
[1742804582424,0.29375927,87307.0,87306.0,0.06656]
[1742804583327,0.29375927,87307.0,87306.0,0.06956]
[1742804584720,0.29375927,87307.0,87306.0,0.03896]
[1742804584925,0.29375927,87307.0,87306.0,0.0378]
[1742804585123,0.29375927,87307.0,87306.0,0.005]
[1742804585724,0.29375927,87307.0,87306.0,0.00616]
[1742804586136,0.29375927,87307.0,87306.0,0.005]
[1742804586440,0.29375927,87307.0,87306.0,0.00616]
[1742804587134,0.29375927,87307.0,87306.0,0.005]
[1742804587334,0.1145465,87299.0,87290.0,0.114558]
[1742804587535,0.4765065,87299.0,87298.0,0.00133182]
[1742804587725,0.5740065,87299.0,87298.0,0.00017182]
[1742804588223,0.6885455,87299.0,87298.0,0.00017182]
[1742804588721,0.0572775,87293.0,87289.0,0.20334439]
[1742804588924,0.1105583,87290.0,87289.0,0.20450439]
[1742804589129,0.1117183,87290.0,87289.0,0.20450439]
[1742804589332,0.29267764,87290.0,87289.0,0.20450439]
[1742804589523,0.28767764,87290.0,87289.0,0.20450439]
[1742804590230,0.28867764,87290.0,87289.0,0.00516]
[1742804590429,0.28867764,87290.0,87289.0,0.01]
[1742804590936,0.28867764,87290.0,87281.0,0.11474092]
[1742804590937,0.1145688,87282.0,87281.0,0.00017182]
[1742804591135,0.11516881,87282.0,87281.0,0.00133182]
[1742804591327,0.17646881,87282.0,87281.0,0.00133182]
[1742804591832,0.29103012,87282.0,87281.0,0.00133182]
[1742804592029,0.29103012,87282.0,87281.0,0.00017182]
[1742804592534,0.28903012,87282.0,87281.0,0.00017182]
[1742804592735,0.29003012,87282.0,87281.0,0.00017182]
[1742804593425,0.29003012,87282.0,87281.0,0.00133182]
[1742804593826,0.1145714,87280.0,87279.0,0.0004583]
[1742804594026,0.1152114,87280.0,87279.0,0.0004583]
[1742804594232,0.1778114,87280.0,87279.0,0.0004583]
[1742804594437,0.29238321,87280.0,87279.0,0.0004583]
[1742804596653,0.29238321,87280.0,87279.0,0.0016183]
[1742804596836,0.29238321,87280.0,87279.0,0.0004583]
[1742804609855,0.29238321,87280.0,87279.0,0.0016583]
[1742804610942,0.29238321,87280.0,87279.0,0.0004583]
[1742804612155,0.29238321,87280.0,87279.0,0.0016983]
[1742804612854,0.29238321,87280.0,87279.0,0.0004583]
[1742804613853,0.11521181,87280.0,87279.0,0.5650311]
[1742804614053,0.11521181,87280.0,87279.0,0.3361911]
[1742804614253,0.11457181,87280.0,87279.0,0.3361911]
[1742804614441,0.11573181,87280.0,87279.0,0.3984911]
[1742804614645,0.00116,87280.0,87279.0,0.3984911]
[1742804614855,8e-05,87281.0,87280.0,0.1145714]
[1742804615155,8e-05,87281.0,87280.0,0.44816167]
[1742804615344,0.1146501,87281.0,87280.0,0.44816167]
[1742804615546,0.22922322,87281.0,87280.0,0.44932167]
[1742804615745,0.22922322,87281.0,87280.0,0.44816167]
[1742804616549,0.11465312,87281.0,87280.0,0.44816167]
[1742804616750,0.11465312,87281.0,87280.0,0.44916167]
[1742804619652,0.11465312,87281.0,87280.0,0.68916167]
[1742804619653,0.09859946,87281.0,87280.0,0.68916167]
[1742804619847,8e-05,87282.0,87281.0,0.1145701]
[1742804620047,8e-05,87282.0,87281.0,0.6845701]
[1742804620358,8e-05,87282.0,87281.0,0.7485701]
[1742804620555,0.00017182,87288.0,87287.0,0.1145623]
[1742804620763,0.00133182,87288.0,87287.0,0.1157223]
[1742804620961,0.23046453,87288.0,87287.0,0.09586]
[1742804621259,0.23046453,87288.0,87287.0,0.0947]
[1742804621461,0.26346453,87288.0,87287.0,0.09594]
[1742804621644,0.26346453,87288.0,87287.0,0.2105023]
[1742804622051,0.29516453,87288.0,87287.0,0.2105023]
[1742804622860,0.29516453,87288.0,87287.0,0.2115023]
[1742804623050,0.26346453,87288.0,87287.0,0.2115023]
[1742804624359,0.29636453,87288.0,87287.0,0.2115023]
[1742804624865,0.26346453,87288.0,87287.0,0.06624]
[1742804625063,0.29636453,87288.0,87287.0,0.06624]
[1742804625268,0.29636453,87288.0,87287.0,0.03294]
[1742804627766,0.11590363,87288.0,87287.0,0.3975023]
[1742804627960,0.11590363,87288.0,87287.0,0.6375023]
[1742804628157,0.11590363,87288.0,87287.0,0.6690023]
[1742804629258,0.11474363,87288.0,87287.0,0.6690023]
[1742804629461,0.11474363,87288.0,87287.0,0.4290023]
[1742804629663,0.11590363,87288.0,87287.0,0.4290023]
[1742804630061,0.11474363,87288.0,87287.0,0.4290023]
[1742804630266,0.11474363,87288.0,87287.0,0.6890023]
[1742804630453,0.11474363,87288.0,87287.0,0.4290023]
[1742804631053,0.11474363,87288.0,87287.0,0.6590023]
[1742804631969,0.00017182,87288.0,87287.0,0.6590023]
[1742804634258,0.00017182,87288.0,87287.0,1.4389023]
[1742804634567,8e-05,87315.0,87314.0,0.1145268]
[1742804634761,8e-05,87315.0,87314.0,0.4270268]
[1742804634956,0.0004,87320.0,87319.0,0.1145203]
[1742804635164,0.0004,87320.0,87319.0,0.4753203]
[1742804635364,0.0004,87320.0,87319.0,0.5389803]
[1742804635571,0.00156,87320.0,87319.0,0.5389803]
[1742804635761,0.11608851,87320.0,87319.0,0.5389803]
[1742804635960,0.23008751,87320.0,87319.0,0.5389803]
[1742804636162,0.26178751,87320.0,87319.0,0.54748284]
[1742804636366,0.26678751,87320.0,87319.0,0.54748284]
[1742804636558,0.26678751,87320.0,87319.0,0.55872942]
[1742804636756,0.15726851,87320.0,87319.0,0.55872942]
[1742804636954,0.15726851,87320.0,87319.0,0.76872942]
[1742804637170,0.12492851,87320.0,87319.0,0.76872942]
[1742804637560,0.12608851,87320.0,87319.0,0.76872942]
[1742804637957,0.12108851,87320.0,87319.0,0.76872942]
[1742804638156,0.15678851,87320.0,87319.0,0.76872942]
[1742804638875,0.15178851,87320.0,87319.0,0.76872942]
[1742804639172,0.15678851,87320.0,87319.0,0.76872942]
[1742804639576,0.15562851,87320.0,87319.0,0.76872942]
[1742804639962,0.15622852,87320.0,87319.0,0.76872942]
[1742804640670,0.01000001,87320.0,87319.0,1.00872942]
[1742804640858,0.0094,87320.0,87319.0,1.00872942]
[1742804642265,0.0064,87320.0,87319.0,1.00872942]
[1742804642773,0.0064,87320.0,87319.0,1.15872942]
[1742804643364,0.0064,87320.0,87319.0,1.00872942]
[1742804643572,0.0024,87320.0,87319.0,1.00872942]
[1742804643769,0.0034,87320.0,87319.0,1.00872942]
[1742804644283,0.0034,87320.0,87319.0,1.15872942]
[1742804644967,0.0034,87320.0,87319.0,1.57782942]
[1742804646975,0.0301,87327.0,87326.0,0.1145111]
[1742804647171,0.0301,87327.0,87326.0,0.9364711]
[1742804647881,0.0301,87327.0,87326.0,0.9982711]
[1742804648376,0.003,87327.0,87326.0,0.9982711]
[1742804648568,0.007,87327.0,87326.0,0.9982711]
[1742804651265,0.007,87327.0,87326.0,1.01281521]
[1742804651473,0.0029,87362.0,87327.0,0.4191]
[1742804651772,0.0631,87383.0,87367.0,0.1144574]
[1742804651966,0.3608,87391.0,87367.0,0.1144574]
[1742804651967,0.0631,87376.0,87367.0,0.842]
[1742804652176,0.0631,87376.0,87367.0,0.362]
[1742804652479,0.11491277,87368.0,87367.0,0.362]
[1742804652675,0.11491277,87368.0,87367.0,0.7364574]
[1742804652870,0.0004,87368.0,87367.0,1.01797343]
[1742804653069,0.0004,87368.0,87367.0,1.02665267]
[1742804653578,0.0004,87368.0,87367.0,0.75665267]
[1742804653777,0.0004,87368.0,87367.0,0.41509527]
[1742804653979,0.0004,87368.0,87367.0,0.76955267]
[1742804654177,0.0004,87368.0,87367.0,0.68619527]
[1742804654370,0.0004,87368.0,87367.0,0.65509527]
[1742804654371,0.0024,87368.0,87367.0,0.65509527]
[1742804654878,0.0338,87368.0,87367.0,0.76955267]
[1742804655082,0.0645,87368.0,87367.0,0.76955267]
[1742804655275,0.0645,87368.0,87367.0,0.80065267]
[1742804655474,0.0655,87368.0,87367.0,0.80065267]
[1742804656176,0.0655,87368.0,87367.0,0.81492312]
[1742804656678,0.0655,87368.0,87367.0,0.80065267]
[1742804656877,0.0655,87368.0,87367.0,0.65509527]
[1742804657182,0.0645,87368.0,87367.0,0.76955267]
[1742804657396,0.0655,87368.0,87367.0,0.76955267]
[1742804658679,0.179956,87368.0,87367.0,0.65509527]
[1742804658879,0.06610001,87368.0,87367.0,0.62219527]
[1742804659176,0.0655,87368.0,87367.0,0.62219527]
[1742804659382,0.0572254,87372.0,87367.0,0.62219527]
[1742804659573,0.114456,87368.0,87367.0,0.0012]
[1742804659878,0.23011504,87368.0,87367.0,0.0012]
[1742804660074,0.11565601,87368.0,87367.0,0.0012]
[1742804660276,0.23011504,87368.0,87367.0,0.0012]
[1742804662573,0.23211504,87368.0,87367.0,0.0012]
[1742804662793,0.0572302,87365.0,87361.0,0.00838735]
[1742804662973,0.1144639,87362.0,87361.0,0.00116]
[1742804663180,0.47650391,87362.0,87361.0,0.00116]
[1742804663372,0.1144665,87360.0,87359.0,0.00017169]
[1742804663574,0.1153865,87360.0,87359.0,0.00109169]
[1742804663773,0.1153865,87360.0,87359.0,0.00017169]
[1742804663979,0.1457865,87360.0,87359.0,0.00101169]
[1742804664178,0.26025339,87360.0,87359.0,0.00101169]
[1742804664378,0.26025339,87360.0,87359.0,0.00017169]
[1742804665278,0.14578689,87360.0,87359.0,0.00017169]
[1742804665477,0.03132,87360.0,87359.0,0.48473125]
[1742804665682,0.0304,87360.0,87359.0,0.47627949]
[1742804666185,0.0304,87360.0,87359.0,0.53797949]
[1742804666491,0.0334,87360.0,87359.0,0.53797949]
[1742804668081,0.0304,87360.0,87359.0,0.53797949]
[1742804669383,0.0304,87360.0,87359.0,0.54674215]
[1742804669586,0.1448665,87360.0,87359.0,0.40197435]
[1742804669887,0.1448665,87360.0,87359.0,0.39321169]
[1742804670180,0.1448665,87360.0,87359.0,0.36181169]
[1742804670181,0.17824651,87360.0,87359.0,0.36181169]
[1742804670588,0.11693349,87360.0,87359.0,0.36181169]
[1742804670790,0.11793349,87360.0,87359.0,0.36181169]
[1742804671094,0.11893349,87360.0,87359.0,0.36181169]
[1742804671281,0.11893349,87360.0,87359.0,0.39311169]
[1742804671475,0.11805348,87360.0,87359.0,0.42611169]
[1742804671679,0.11705348,87360.0,87359.0,0.42611169]
[1742804671878,0.11805348,87360.0,87359.0,0.42611169]
[1742804672282,0.11905348,87360.0,87359.0,0.42611169]
[1742804673183,0.11805348,87360.0,87359.0,0.42611169]
[1742804673486,0.0345,87360.0,87359.0,0.42611169]
[1742804673784,0.0653,87360.0,87359.0,0.42611169]
[1742804673989,0.1787665,87360.0,87359.0,0.42611169]
[1742804674192,0.1797665,87360.0,87359.0,0.42611169]
[1742804674376,0.1797665,87360.0,87359.0,0.69595646]
[1742804676588,0.1787665,87360.0,87359.0,0.42611169]
[1742804676787,0.1806065,87360.0,87359.0,0.42611169]
[1742804677296,0.1797665,87360.0,87359.0,0.42611169]
[1742804677797,0.1796865,87360.0,87359.0,0.42611169]
[1742804679192,0.1806865,87360.0,87359.0,0.42611169]
[1742804679898,0.29515601,87360.0,87359.0,0.36181169]
[1742804680787,0.29515601,87360.0,87359.0,0.39201169]
[1742804681402,0.29515601,87360.0,87359.0,0.42481169]
[1742804681991,0.29415601,87360.0,87359.0,0.42481169]
[1742804682186,0.29515601,87360.0,87359.0,0.42481169]
[1742804682800,0.29615601,87360.0,87359.0,0.42481169]
[1742804683597,0.29715601,87360.0,87359.0,0.42481169]
[1742804684401,0.29615601,87360.0,87359.0,0.42481169]
[1742804684602,0.29715601,87360.0,87359.0,0.42481169]
[1742804685096,0.29815601,87360.0,87359.0,0.42481169]
[1742804686799,0.29515601,87360.0,87359.0,0.42481169]
[1742804686990,0.29715601,87360.0,87359.0,0.42481169]
[1742804688999,0.29615601,87360.0,87359.0,0.42481169]
[1742804689191,0.29815601,87360.0,87359.0,0.06401169]
[1742804689396,0.1144691,87358.0,87357.0,0.20310554]
[1742804689600,0.11506911,87358.0,87357.0,0.20370554]
[1742804689802,0.17766911,87358.0,87357.0,0.20370554]
[1742804690207,0.29213862,87358.0,87357.0,0.20370554]
[1742804690404,0.17766952,87358.0,87357.0,0.20370554]
[1742804690602,0.29413862,87358.0,87357.0,0.20370554]
[1742804690807,0.29413862,87358.0,87357.0,0.0006]
[1742804691399,0.29413862,87358.0,87357.0,0.0326]
[1742804691710,0.29613862,87358.0,87357.0,0.0326]
[1742804692307,0.29513862,87358.0,87357.0,0.0326]
[1742804693100,0.29613862,87358.0,87357.0,0.0326]
[1742804696817,0.29613862,87358.0,87357.0,0.1470705]
[1742804697214,0.29613862,87358.0,87357.0,0.1784705]
[1742804697415,0.29613862,87358.0,87357.0,0.064]
[1742804697724,0.29613862,87358.0,87357.0,0.1784705]
[1742804698120,0.29613862,87358.0,87357.0,0.064]
[1742804698514,0.23353862,87358.0,87357.0,0.064]
[1742804698714,0.23353862,87358.0,87357.0,0.1784705]
[1742804699213,0.26483862,87358.0,87357.0,0.1784705]
[1742804700122,0.26483862,87358.0,87357.0,0.064]
[1742804700321,0.29683862,87358.0,87357.0,0.064]
[1742804700726,0.29683862,87358.0,87357.0,0.1784705]
[1742804701128,0.29683862,87358.0,87357.0,0.064]
[1742804701812,0.11906952,87358.0,87357.0,0.1784705]
[1742804702209,0.23353862,87358.0,87357.0,0.1784705]
[1742804702713,0.11906952,87358.0,87357.0,0.1784705]
[1742804703227,0.23153862,87358.0,87357.0,0.1784705]
[1742804704532,0.29563862,87358.0,87357.0,0.1784705]
[1742804704825,0.29563862,87358.0,87357.0,0.064]
[1742804705221,0.29563862,87358.0,87357.0,0.1784705]
[1742804705734,0.29563862,87358.0,87357.0,0.064]
[1742804706330,0.29663862,87358.0,87357.0,0.1784705]
[1742804706631,0.32783862,87358.0,87357.0,0.1784705]
[1742804707933,0.32783862,87358.0,87357.0,0.064]
[1742804709024,0.29663862,87358.0,87357.0,0.1778705]
[1742804709232,0.11806952,87358.0,87357.0,0.1784705]
[1742804709530,0.00142831,87358.0,87357.0,0.5392705]
[1742804710118,0.0572263,87371.0,87370.0,0.1144534]
[1742804710322,0.0579863,87371.0,87370.0,0.1152134]
[1742804710730,0.0572235,87375.0,87372.0,0.0572253]
[1742804710926,0.00017138,87376.0,87375.0,0.1144469]
[1742804711233,0.00017138,87376.0,87375.0,0.1152069]
[1742804711432,0.11538648,87376.0,87375.0,0.1484069]
[1742804711728,0.00093138,87376.0,87375.0,0.3684069]
[1742804711930,0.00093138,87376.0,87375.0,0.1484069]
[1742804711931,0.00017138,87376.0,87375.0,0.1484069]
[1742804712131,0.00017138,87376.0,87375.0,0.7509006]
[1742804712331,0.00317138,87376.0,87375.0,0.7509006]
[1742804712527,0.00317138,87376.0,87375.0,0.5209006]
[1742804713035,0.00317138,87376.0,87375.0,0.7509006]
[1742804713341,0.00317138,87376.0,87375.0,0.8144006]
[1742804713627,0.00817138,87376.0,87375.0,0.8144006]
[1742804713833,0.12261698,87376.0,87375.0,0.1091537]
[1742804714035,0.12321699,87376.0,87375.0,0.1091537]
[1742804714627,0.15551699,87376.0,87375.0,0.1091537]
[1742804715329,0.18811699,87376.0,87375.0,0.1091537]
[1742804715537,0.30256554,87376.0,87375.0,0.1091537]
[1742804715724,0.23766554,87376.0,87375.0,0.2228406]
[1742804715925,0.23766554,87376.0,87375.0,0.2236006]
[1742804716525,0.23766554,87376.0,87375.0,0.1091537]
[1742804716719,0.27036554,87376.0,87375.0,0.1091537]
[1742804719027,0.12321994,87376.0,87375.0,0.2236006]
[1742804719536,0.23766554,87376.0,87375.0,0.2236006]
[1742804719833,0.23766554,87376.0,87375.0,0.06536]
[1742804720021,0.30136554,87376.0,87375.0,0.0646]